Workbook

Sheet Cover
B3: Excel + VBA
B4: für Controller
B7: Kapitel | C7: 3
B8: Thema | C8: Formeln und Funktionen
B10: Inhalt | C10: Barwertfunktionen
B21: Version | C21: 2.0
B22: Autor | C22: Harald Nahrstedt
B23: Datum | C23: 2023-08-03
B26: Springer Verlag

Sheet RMZ
A1: Parameter | B1: Wert
A2: Fälligkeit | B2: 1
A3: Restwert | B3: 8000
A4: Zinssatz p.a. | B4: 0.035
A5: Laufzeit in Monate | B5: 48
A6: Kreditbetrag | B6: 50000
A7: montl. Rate | B7: =PMT(Zinssatz/12,Laufzeit,Kreditbetrag,Restwert,Fälligkeit) -> 

Sheet BW
A1: Parameter | B1: Wert
A2: Fälligkeit | B2: 1
A3: monatliche Zahlung | B3: 600
A4: Laufzeit in Monate | B4: 72
A5: Zielwert | B5: 50000
A6: Zins | B6: 0.0905
A7: Startkapital | B7: =PV(Zinssatz/12,Laufzeit,Zahlung*-1,Zielwert,Fälligkeit) -> 

Sheet ZW
A1: Parameter | B1: Wert
A2: Fälligkeit | B2: 1
A3: monatliche Zahlung | B3: 1200
A4: Zinssatz p.a. | B4: 0.035
A5: Laufzeit in Monate | B5: 48
A6: Kreditbetrag | B6: 50000
A7: Restwert | B7: =FV(Zinssatz/12,Laufzeit,Zahlung*-1,Kreditbetrag,Fälligkeit) -> 

Sheet ZINS
A1: Parameter | B1: Wert
A2: Fälligkeit | B2: 1
A3: monatl. Rate | B3: 1200
A4: Restwert | B4: 4000
A5: Laufzeit in Monate | B5: 48
A6: Kreditbetrag | B6: 50000
A7: geschätzter Zins | B7: 0.035
A8: Zinssatz p.a. | B8: =RATE(Laufzeit,Zahlung*-1,Kreditbetrag,Restwert,Fälligkeit,Zins)*12 -> 

Sheet ZINSZ
A1: Parameter | B1: Wert
A2: Fälligkeit | B2: 1
A3: monatl. Rate | B3: 1200
A4: Zinssatz p.a. | B4: 0.035
A5: Laufzeit in Monate | B5: 48
A6: Kreditbetrag | B6: 50000
A7: Restwert | B7: 4000
A9: Peroide | B9: 12
A10: Zinsanteil | B10: =IPMT(Zinssatz/12,Periode,Laufzeit,Kreditbetrag,Restwert,Fälligkeit) -> 

Sheet ZZR
A1: Parameter | B1: Wert
A2: Fälligkeit | B2: 1
A3: monatl. Rate | B3: 600
A4: Restwert | B4: 4000
A5: Zins | B5: 0.035
A6: Kreditbetrag | B6: 50000
A7: Laufzeit in Monate | B7: =ROUNDUP(NPER(Zinssatz/12,Zahlung*-1,Kreditbetrag,Restwert,Fälligkeit),0) -> 

Sheet NBW
A1: Parameter | B1: Wert | D1: Periode | E1: Einzahlung | F1: Auszahlung | G1: Überschuss | H1: Abzinssätze | I1: Barwert
A2: Anschaffungskosten | B2: 50000 | D2: 1 | E2: 13500 | F2: 8000 | G2: =Einzahlung-Auszahlung -> 5500 | H2: =(1+Zinssatz)^(-Periode) -> 0.9661835749 | I2: =Überschuss*Abzins -> 5314.009662
A3: kalkulatorischer Zinssatz | B3: 0.035 | D3: 2 | E3: 18200 | F3: 8000 | G3: =Einzahlung-Auszahlung -> 10200 | H3: =(1+Zinssatz)^(-Periode) -> 0.9335107004 | I3: =Überschuss*Abzins -> 9521.809144
A4: Summe Barwerte | B4: =SUM(Barwert) -> 82261.37522 | D4: 3 | E4: 31600 | F4: 8000 | G4: =Einzahlung-Auszahlung -> 23600 | H4: =(1+Zinssatz)^(-Periode) -> 0.9019427057 | I4: =Überschuss*Abzins -> 21285.84785
A5: Kapitalwert | B5: =NPV(Zinssatz,Überschuss)-AnKosten -> 32261.37522 | D5: 4 | E5: 33700 | F5: 8000 | G5: =Einzahlung-Auszahlung -> 25700 | H5: =(1+Zinssatz)^(-Periode) -> 0.8714422277 | I5: =Überschuss*Abzins -> 22396.06525
D6: 5 | E6: 36200 | F6: 8000 | G6: =Einzahlung-Auszahlung -> 28200 | H6: =(1+Zinssatz)^(-Periode) -> 0.8419731669 | I6: =Überschuss*Abzins -> 23743.64331
D7: Summen | E7: =SUM(E2:E6) -> 133200 | F7: =SUM(F2:F6) -> 40000 | G7: =SUM(G2:G6) -> 93200 | I7: =SUM(Barwert) -> 82261.37522
H9: NBW aus Tabelle: | I9: =SuBarwert-AnKosten -> 32261.37522
H10: NBW aus Formel: | I10: =NPV(Zinssatz,Überschuss)-AnKosten -> 32261.37522
